fUST/lending_fUST_20250128
["ID","MTS","AMOUNT","RATE_DAILY","PERIOD"]
[350625604,1738007453126,-500.0,0.00021817,2]
[350625605,1738007453136,-500.0,0.00021817,2]
[350625607,1738007453145,-523.22,0.00021817,2]
[350625609,1738007453155,-500.0,0.00021817,2]
[350625611,1738007453164,-500.0,0.00021817,2]
[350625614,1738007453176,-1184.62,0.00021817,2]
[350625615,1738007453185,-500.0,0.00021817,2]
[350625618,1738007453195,-500.0,0.00021817,2]
[350625620,1738007453206,-500.0,0.00021817,2]
[350625622,1738007453215,-500.0,0.00021817,2]
[350625624,1738007453225,-500.0,0.00021817,2]
[350625626,1738007453235,-500.0,0.00021817,2]
[350625628,1738007453244,-500.0,0.00021817,2]
[350625630,1738007453253,-500.0,0.00021817,2]
[350625632,1738007453262,-500.0,0.00021817,2]
[350625633,1738007453272,-500.0,0.00021817,2]
[350625634,1738007453281,-500.0,0.00021817,2]
[350625635,1738007453291,-500.0,0.00021817,2]
[350625636,1738007453300,-500.0,0.00021817,2]
[350625637,1738007453310,-681.69,0.00021817,2]
[350625638,1738007453319,-500.0,0.00021818,2]
[350625639,1738007453329,-11785.77,0.00021818,2]
[350625640,1738007453338,-589.18,0.00021818,2]
[350625641,1738007453348,-500.0,0.00021818,2]
[350625642,1738007453357,-3428.8,0.00021818,2]
[350625643,1738007453367,-4655.51,0.00021818,2]
[350625645,1738007453376,-500.0,0.00021819,2]
[350625647,1738007453387,-500.0,0.00021819,2]
[350625649,1738007453396,-500.0,0.00021819,2]
[350625651,1738007453406,-500.0,0.00021819,2]
[350625653,1738007453415,-500.0,0.00021819,2]
[350625655,1738007453425,-500.0,0.00021819,2]
[350625656,1738007453434,-531.12,0.00021819,2]
[350625658,1738007453444,-500.0,0.00021819,2]
[350625661,1738007453454,-500.0,0.00021819,2]
[350625663,1738007453463,-500.0,0.00021819,2]
[350625665,1738007453473,-554.09,0.00021819,2]
[350625667,1738007453483,-500.0,0.00021819,2]
[350625669,1738007453492,-500.0,0.00021819,2]
[350625671,1738007453501,-500.0,0.00021819,2]
[350625673,1738007453510,-500.0,0.00021819,2]
[350625675,1738007453520,-500.0,0.00021819,2]
[350625677,1738007453529,-500.0,0.00021819,2]
[350625679,1738007453538,-151.0,0.00021819,2]
[350625681,1738007453547,-258.90142,0.0002182,2]
[350625682,1738007453556,-258.90142,0.0002182,2]
[350625684,1738007453565,-500.0,0.0002182,2]
[350625686,1738007453575,-500.0,0.0002182,2]
[350625688,1738007453584,-151.0,0.0002182,2]
[350625690,1738007453593,-151.0,0.0002182,2]
[350625692,1738007453602,-151.0,0.0002182,2]
[350625694,1738007453612,-151.0,0.0002182,2]
[350625696,1738007453621,-500.0,0.00021847,2]
[350625698,1738007453633,-887.05,0.00021847,2]
[350625701,1738007453643,-245.82,0.00021847,2]
[350625702,1738007453652,-340.33727462,0.00021866,3]
[350625704,1738007453662,-703.14,0.00021887,2]
[350625706,1738007453671,-814.69,0.00021887,2]
[350625708,1738007453680,-500.0,0.00021887,2]
[350625710,1738007453689,-2074.67,0.00021887,2]
[350625712,1738007453698,-180.68,0.00021887,2]
[350625714,1738007453707,-681.54,0.00021887,2]
[350625716,1738007453716,-500.0,0.00021887,2]
[350625718,1738007453727,-308.62,0.000219,2]
[350625720,1738007453736,-151.0,0.00021918,2]
[350625722,1738007453746,-151.0,0.00021918,2]
[350625724,1738007453756,-151.0,0.00021918,2]
[350625726,1738007453766,-340.33727462,0.00021934,3]
[350625728,1738007453775,-500.0,0.00021954,2]
[350625730,1738007453785,-500.0,0.00021954,2]
[350625732,1738007453795,-500.0,0.00021954,2]
[350625734,1738007453805,-500.0,0.00021954,2]
[350625736,1738007453815,-500.0,0.00021954,2]
[350625739,1738007453825,-500.0,0.00021954,2]
[350625741,1738007453837,-500.0,0.00021954,2]
[350625743,1738007453846,-500.0,0.00021954,2]
[350625744,1738007453855,-500.0,0.00021954,2]
[350625746,1738007453864,-500.0,0.00021954,2]
[350625749,1738007453875,-500.0,0.00021954,2]
[350625751,1738007453886,-500.0,0.00021954,2]
[350625752,1738007453895,-500.0,0.00021954,2]
[350625754,1738007453904,-500.0,0.00021954,2]
[350625756,1738007453914,-523.22,0.00021954,2]
[350625758,1738007453923,-500.0,0.00021954,2]
[350625760,1738007453932,-500.0,0.00021954,2]
[350625762,1738007453942,-1184.62,0.00021954,2]
[350625764,1738007453951,-500.0,0.00021954,2]
[350625766,1738007453961,-500.0,0.00021954,2]
[350625768,1738007453970,-500.0,0.00021954,2]
[350625770,1738007453979,-500.0,0.00021954,2]
[350625772,1738007453989,-500.0,0.00021954,2]
[350625774,1738007453998,-500.0,0.00021954,2]
[350625776,1738007454007,-240.15237797,0.00021954,2]
[350625779,1738007454016,-500.0,0.00021954,2]
[350625781,1738007454027,-500.0,0.00021954,2]
[350625783,1738007454037,-500.0,0.00021954,2]
[350625785,1738007454046,-500.0,0.00021954,2]
[350625787,1738007454055,-500.0,0.00021954,2]
[350625789,1738007454064,-500.0,0.00021954,2]
[350625791,1738007454073,-681.69,0.00021954,2]
[350625793,1738007454082,-151.0,0.00021955,7]
[350625795,1738007454092,-500.0,0.00021955,2]
[350625797,1738007454105,-1115.306999,0.00021955,7]
[350625799,1738007454114,-1115.306999,0.00021955,7]
[350625801,1738007454123,-11785.77,0.00021955,2]
[350625803,1738007454135,-589.18,0.00021955,2]
[350625805,1738007454144,-500.0,0.00021955,2]
[350625807,1738007454154,-3428.8,0.00021955,2]
[350625809,1738007454164,-4655.51,0.00021955,2]
[350625811,1738007454174,-500.0,0.00021956,2]
[350625813,1738007454184,-500.0,0.00021956,2]
[350625815,1738007454193,-500.0,0.00021956,2]
[350625817,1738007454203,-500.0,0.00021956,2]
[350625819,1738007454213,-151.0,0.00021956,7]
[350625821,1738007454222,-500.0,0.00021956,2]
[350625823,1738007454231,-500.0,0.00021956,2]
[350625825,1738007454240,-531.12,0.00021956,2]
[350625827,1738007454249,-500.0,0.00021956,2]
[350625829,1738007454259,-500.0,0.00021956,2]
[350625831,1738007454269,-151.209988,0.00021956,7]
[350625833,1738007454278,-151.209988,0.00021956,7]
[350625835,1738007454288,-500.0,0.00021956,2]
[350625837,1738007454297,-554.09,0.00021956,2]
[350625839,1738007454307,-500.0,0.00021956,2]
[350625842,1738007454316,-180.051172,0.00021956,7]
[350625844,1738007454326,-180.051172,0.00021956,7]
[350625846,1738007454336,-151.0,0.00021956,7]
[350625857,1738007454433,-500.0,0.00021956,2]
[350625859,1738007454443,-500.0,0.00021956,2]
[350625861,1738007454452,-500.0,0.00021956,2]
[350625863,1738007454461,-500.0,0.00021956,2]
[350625865,1738007454470,-500.0,0.00021956,2]
[350625867,1738007454479,-151.0,0.00021957,7]
[350625869,1738007454489,-151.0,0.00021957,7]
[350625871,1738007454498,-151.0,0.00021957,7]
[350625873,1738007454507,-500.0,0.00021957,2]
[350625875,1738007454517,-166.873064,0.00021957,7]
[350625877,1738007454526,-166.873064,0.00021957,7]
[350625879,1738007454535,-500.0,0.00021957,2]
[350625881,1738007454545,-298.227168,0.00021957,7]
[350625883,1738007454554,-298.227168,0.00021957,7]
[350625885,1738007454563,-415.64777355,0.00021961,2]
[350625887,1738007454573,-448.22,0.00021984,2]
[350625889,1738007454582,-887.05,0.00021984,2]
[350625891,1738007454591,-340.33727462,0.00022003,3]
[350625893,1738007454600,-150.0,0.00022021,2]
[350625895,1738007454609,-2003.21,0.00022021,2]
[350625897,1738007454618,-150.0,0.00022021,2]
[350625899,1738007454628,-150.0,0.00022021,2]
[350625901,1738007454638,-395.0,0.00022021,2]
[350625903,1738007454647,-150.0,0.00022021,2]
[350625905,1738007454657,-703.14,0.00022024,2]
[350625907,1738007454666,-814.69,0.00022024,2]
[350625909,1738007454675,-500.0,0.00022024,2]
[350625911,1738007454685,-2074.67,0.00022024,2]
[350625913,1738007454694,-681.54,0.00022024,2]
[350625915,1738007454703,-189.65,0.00022024,2]
[350625917,1738007454712,-340.33727462,0.00022072,3]
[350625919,1738007454722,-160.96,0.00022078,2]
[350625921,1738007454731,-500.0,0.00022091,2]
[350625923,1738007454741,-500.0,0.00022091,2]
[350625925,1738007454751,-500.0,0.00022091,2]
[350625928,1738007454762,-500.0,0.00022091,2]
[350625930,1738007454771,-500.0,0.00022091,2]
[350625932,1738007454780,-500.0,0.00022091,2]
[350625934,1738007454790,-500.0,0.00022091,2]
[350625936,1738007454799,-500.0,0.00022091,2]
[350625938,1738007454808,-500.0,0.00022091,2]
[350625940,1738007454818,-500.0,0.00022091,2]
[350625942,1738007454826,-411.020593,0.00022091,2]
[350625944,1738007454836,-500.0,0.00022091,2]
[350625946,1738007454845,-500.0,0.00022091,2]
[350625947,1738007454854,-523.22,0.00022091,2]
[350625949,1738007454864,-500.0,0.00022091,2]
[350625951,1738007454873,-500.0,0.00022091,2]
[350625953,1738007454883,-1184.62,0.00022091,2]
[350625955,1738007454893,-500.0,0.00022091,2]
[350625957,1738007454902,-500.0,0.00022091,2]
[350625959,1738007454912,-500.0,0.00022091,2]
[350625961,1738007454921,-500.0,0.00022091,2]
[350625962,1738007454931,-435.28298859,0.00022091,2]
[350625963,1738007454941,-500.0,0.00022091,2]
[350625964,1738007454951,-500.0,0.00022091,2]
[350625965,1738007454960,-500.0,0.00022091,2]
[350625966,1738007454970,-589.38612849,0.00022091,2]
[350625967,1738007454980,-608.6589842,0.00022091,2]
[350625968,1738007454990,-500.0,0.00022091,2]
[350625969,1738007454999,-681.69,0.00022091,2]
[350625970,1738007455008,-500.0,0.00022092,2]
[350625971,1738007455018,-11785.77,0.00022092,2]
[350625973,1738007455028,-589.18,0.00022092,2]
[350625975,1738007455038,-500.0,0.00022092,2]
[350625977,1738007455048,-1135.19802342,0.00022092,2]
[350633454,1738008427300,-1437.84267328,0.00019034,2]
[350633455,1738008440164,-2387.3590696,0.00019034,2]
[350633456,1738008440185,-1910.42572681,0.00019226,2]
[350633457,1738008440208,-256.56611085,0.00019419,2]
[350633458,1738008440228,-159.09537386,0.00019421,2]
[350633459,1738008440248,-188.22,0.0001951,2]
[350633460,1738008440269,-300.0,0.00019518,2]
[350633461,1738008440290,-500.0,0.00019519,2]
[350633462,1738008440310,-500.0,0.00019519,2]
[350633463,1738008440332,-897.55,0.00019519,2]
[350633464,1738008440352,-441.52542234,0.00019519,2]
[350633465,1738008444110,-58.47457766,0.00019519,2]
[350633466,1738008444131,-481.84786314,0.00019519,2]
[350633481,1738008632791,-160.345554,0.00019178,2]
[350633483,1738008632800,-3972.20629125,0.00019324,2]
[350633489,1738008632845,-401.10697745,0.00019324,2]
[350633496,1738008632900,-366.63173664,0.00019324,2]
[350633498,1738008632911,-260.05499466,0.00019324,2]
[350633500,1738008632921,-224.49534702,0.00019419,2]
[350633502,1738008632930,-300.0,0.00019518,2]
[350633504,1738008632940,-500.0,0.00019519,2]
[350633506,1738008632949,-500.0,0.00019519,2]
[350633508,1738008632958,-199.53631585,0.00019519,2]
[350633510,1738008632968,-500.0,0.00019519,2]
[350633512,1738008632978,-500.0,0.00019519,2]
[350633514,1738008632987,-500.0,0.00019519,2]
[350633516,1738008632996,-500.0,0.00019519,2]
[350633518,1738008633005,-500.0,0.00019519,2]
[350633520,1738008633014,-500.0,0.00019519,2]
[350633522,1738008633024,-500.0,0.00019519,2]
[350633524,1738008633033,-500.0,0.00019519,2]
[350633528,1738008633042,-189.13752448,0.00019519,2]
[350633532,1738008633052,-500.0,0.00019519,2]
[350633536,1738008633061,-500.0,0.00019519,2]
[350633540,1738008633071,-500.0,0.00019519,2]
[350633542,1738008633081,-562.38809,0.00019519,2]
[350633544,1738008633090,-421.30039492,0.00019519,2]
[350633546,1738008633100,-500.0,0.00019519,2]
[350633548,1738008633110,-500.0,0.00019519,2]
[350633550,1738008633119,-500.0,0.00019519,2]
[350633552,1738008633130,-384.04873712,0.00019519,2]
[350633554,1738008633139,-329.05633196,0.00019519,2]
[350633556,1738008633149,-500.0,0.00019519,2]
[350633558,1738008633159,-500.0,0.00019519,2]
[350633559,1738008633168,-500.0,0.00019519,2]
[350633560,1738008633178,-500.0,0.00019519,2]
[350633561,1738008633187,-500.0,0.00019519,2]
[350633562,1738008633197,-500.0,0.00019519,2]
[350633563,1738008633206,-500.0,0.00019519,2]
[350633564,1738008633216,-500.0,0.00019519,2]
[350633565,1738008633226,-500.0,0.00019519,2]
[350633566,1738008633235,-500.0,0.00019519,2]
[350633567,1738008633351,-500.0,0.00019519,2]
[350633568,1738008633361,-500.0,0.00019519,2]
[350633569,1738008633372,-500.0,0.00019519,2]
[350633570,1738008633382,-500.0,0.00019519,2]
[350633571,1738008633391,-500.0,0.00019519,2]
[350633572,1738008633400,-810.37,0.00019519,2]
[350633573,1738008633410,-500.0,0.00019519,2]
[350633574,1738008633420,-500.0,0.00019519,2]
[350633575,1738008633430,-500.0,0.00019519,2]
[350633576,1738008633440,-500.0,0.00019519,2]
[350633577,1738008633450,-559.1,0.00019519,2]
[350633578,1738008633459,-500.0,0.00019519,2]
[350633579,1738008633468,-500.0,0.00019519,2]
[350633580,1738008633483,-1364.03,0.00019519,2]
[350633581,1738008633493,-1820.45,0.00019519,2]
[350633582,1738008633503,-1833.77,0.00019519,2]
[350633583,1738008633513,-500.0,0.00019519,2]
[350633584,1738008633523,-500.0,0.00019519,2]
[350633585,1738008633532,-500.0,0.00019519,2]
[350633586,1738008633542,-500.0,0.00019519,2]
[350633587,1738008633552,-500.0,0.00019519,2]
[350633588,1738008633563,-500.0,0.00019519,2]
[350633589,1738008633573,-1241.81,0.00019519,2]
[350633590,1738008633582,-500.0,0.00019519,2]
[350633591,1738008633592,-500.0,0.00019519,2]
[350633592,1738008633602,-500.0,0.00019519,2]
[350633593,1738008633611,-500.0,0.00019519,2]
[350633594,1738008633620,-500.0,0.00019519,2]
[350633595,1738008633629,-500.0,0.00019519,2]
[350633596,1738008633639,-500.0,0.00019519,2]
[350633597,1738008633649,-546.2,0.00019519,2]
[350633598,1738008633659,-860.15,0.00019519,2]
[350633599,1738008633669,-500.0,0.00019519,2]
[350633600,1738008633679,-500.0,0.00019519,2]
[350633601,1738008633689,-705.34,0.00019519,2]
[350633602,1738008633699,-500.0,0.00019519,2]
[350633603,1738008633708,-500.0,0.00019519,2]
[350633604,1738008633718,-469.98379289,0.00019519,2]
[350633605,1738008633727,-500.0,0.00019519,2]
[350633606,1738008633737,-500.0,0.00019519,2]
[350633607,1738008633746,-500.0,0.00019519,2]
[350633608,1738008633756,-500.0,0.00019519,2]
[350633609,1738008633765,-500.0,0.00019519,2]
[350633610,1738008633775,-500.0,0.00019519,2]
[350633611,1738008633785,-500.0,0.00019519,2]
[350633612,1738008633795,-500.0,0.00019519,2]
[350633613,1738008633805,-500.0,0.00019519,2]
[350633614,1738008633815,-500.0,0.00019519,2]
[350633615,1738008633824,-500.0,0.00019519,2]
[350633616,1738008633835,-500.0,0.00019519,2]
[350633617,1738008633844,-1432.09,0.00019519,2]
[350633618,1738008633854,-834.14,0.00019519,2]
[350633619,1738008633864,-2071.85,0.00019519,2]
[350633620,1738008633875,-502.19082117,0.0001952,2]
[350633621,1738008633885,-502.76119709,0.0001952,2]
[350633622,1738008633896,-500.0,0.0001952,2]
[350633623,1738008633906,-500.0,0.0001952,2]
[350633624,1738008633915,-500.0,0.0001952,2]
[350633625,1738008633925,-500.0,0.0001952,2]
[350633626,1738008633935,-502.1781277,0.0001952,2]
[350633627,1738008633944,-500.0,0.0001952,2]
[350633628,1738008633954,-426.19038534,0.0001952,2]
[350633629,1738008633963,-500.0,0.0001952,2]
[350633630,1738008633973,-500.0,0.0001952,2]
[350633631,1738008633982,-210.0,0.0001952,2]
[350633632,1738008633991,-500.0,0.0001952,2]
[350633633,1738008634001,-510.62378845,0.0001952,2]
[350633634,1738008634011,-500.0,0.0001952,2]
[350633635,1738008634023,-500.0,0.0001952,2]
[350633636,1738008634033,-500.0,0.0001952,2]
[350633637,1738008634043,-500.0,0.0001952,2]
[350633638,1738008634052,-500.0,0.0001952,2]
[350633639,1738008634063,-500.0,0.0001952,2]
[350633640,1738008634075,-500.0,0.0001952,2]
[350633641,1738008634085,-500.0,0.0001952,2]
[350633642,1738008634095,-500.0,0.0001952,2]
[350633643,1738008634104,-500.0,0.0001952,2]
[350633644,1738008634114,-505.67619893,0.0001952,2]
[350633645,1738008634124,-500.0,0.0001952,2]
[350633646,1738008634134,-500.0,0.0001952,2]
[350633647,1738008634144,-500.0,0.0001952,2]
[350633648,1738008634153,-500.0,0.0001952,2]
[350633649,1738008634163,-500.0,0.0001952,2]
[350633650,1738008634172,-500.0,0.0001952,2]
[350633651,1738008634182,-500.0,0.0001952,2]
[350633652,1738008634192,-500.0,0.0001952,2]
[350633653,1738008634202,-500.0,0.0001952,2]
[350633654,1738008634211,-500.0,0.0001952,2]
[350633655,1738008634221,-502.35164064,0.0001952,2]
[350633656,1738008634231,-500.0,0.0001952,2]
[350633657,1738008634240,-500.0,0.0001952,2]
[350633658,1738008634249,-262.14731574,0.0001952,2]
[350633659,1738008634259,-500.0,0.0001952,2]
[350633660,1738008634269,-200.0,0.0001952,2]
[350633661,1738008634279,-500.0,0.0001952,2]
[350633662,1738008634289,-500.0,0.0001952,2]
[350633663,1738008634299,-500.0,0.0001952,2]
[350633664,1738008634309,-500.0,0.0001952,2]
[350633665,1738008634318,-500.0,0.0001952,2]
[350633666,1738008634327,-500.0,0.0001952,2]
[350633667,1738008634336,-500.0,0.0001952,2]
[350633668,1738008634346,-500.0,0.0001952,2]
[350633669,1738008634356,-500.0,0.0001952,2]
[350633670,1738008634365,-500.0,0.0001952,2]
[350633671,1738008634375,-500.0,0.0001952,2]
[350633672,1738008634385,-500.0,0.0001952,2]
[350633673,1738008634395,-500.0,0.0001952,2]
[350633674,1738008634405,-367.84836339,0.0001952,2]
[350633675,1738008634415,-500.0,0.0001952,2]
[350633676,1738008634427,-500.0,0.0001952,2]
[350633677,1738008634440,-500.0,0.0001952,2]
[350633678,1738008634454,-500.0,0.0001952,2]
[350633679,1738008634468,-500.0,0.0001952,2]
[350633680,1738008634484,-500.0,0.0001952,2]
[350633681,1738008634496,-500.0,0.0001952,2]
[350633682,1738008634507,-500.77917561,0.0001952,2]
[350633683,1738008634520,-500.82314656,0.0001952,2]
[350633684,1738008634533,-500.0,0.0001952,2]
[350633685,1738008634545,-500.0,0.0001952,2]
[350633686,1738008634559,-500.0,0.0001952,2]
[350633687,1738008634572,-500.0,0.0001952,2]
[350633688,1738008634585,-500.0,0.0001952,2]
[350633689,1738008634597,-500.0,0.0001952,2]
[350633690,1738008634610,-501.86170723,0.0001952,2]
[350633691,1738008634624,-500.0,0.0001952,2]
[350633692,1738008634636,-500.0,0.0001952,2]
[350633693,1738008634649,-500.0,0.0001952,2]
[350633694,1738008634661,-500.0,0.0001952,2]
[350633695,1738008634673,-500.0,0.0001952,2]
[350633696,1738008634684,-517.34636823,0.0001952,2]
[350633697,1738008634697,-500.0,0.0001952,2]
[350633698,1738008634709,-500.83302535,0.0001952,2]
[350633699,1738008634721,-500.0,0.0001952,2]
[350633700,1738008634733,-500.0,0.0001952,2]
[350633701,1738008634744,-532.39509693,0.0001952,2]
[350633702,1738008634754,-500.0,0.0001952,2]
[350633703,1738008634765,-439.92295,0.0001952,2]
[350633704,1738008634776,-288.75680324,0.0001952,2]
[350633705,1738008634788,-501.46143754,0.0001952,2]
[350633706,1738008634800,-500.0,0.0001952,2]
[350633707,1738008634811,-243.97730956,0.0001952,2]
[350633708,1738008634823,-500.0,0.0001952,2]
[350633709,1738008634834,-500.0,0.0001952,2]
[350633710,1738008634847,-500.0,0.0001952,2]
[350633711,1738008634860,-500.0,0.0001952,2]
[350633712,1738008634872,-500.0,0.0001952,2]
[350633713,1738008634885,-500.0,0.0001952,2]
[350633714,1738008634898,-500.0,0.0001952,2]
[350633715,1738008634908,-500.0,0.0001952,2]
[350633716,1738008634919,-500.0,0.0001952,2]
[350633717,1738008634929,-500.0,0.0001952,2]
[350633718,1738008634940,-500.0,0.0001952,2]
[350633719,1738008634953,-506.45,0.0001952,2]
[350633720,1738008634967,-500.0,0.0001952,2]
[350633721,1738008634979,-165.75052654,0.0001952,2]
[350633722,1738008634990,-272.73437271,0.0001952,2]
[350633723,1738008635000,-500.0,0.0001952,2]
[350633724,1738008635012,-520.95675496,0.0001952,2]
[350633725,1738008635023,-500.0,0.0001952,2]
[350633726,1738008635035,-367.81286835,0.0001952,2]
[350633727,1738008635047,-535.34,0.0001952,2]
[350633728,1738008635058,-500.0,0.0001952,2]
[350633729,1738008635068,-500.0,0.0001952,2]
[350633730,1738008635078,-500.0,0.0001952,2]
[350633731,1738008635089,-500.0,0.0001952,2]
[350633732,1738008635099,-504.46325699,0.0001952,2]
[350633733,1738008635110,-500.0,0.0001952,2]
[350633734,1738008635122,-500.0,0.0001952,2]
[350633735,1738008635133,-503.73265557,0.0001952,2]
[350633736,1738008635144,-500.0,0.0001952,2]
[350633737,1738008635155,-3732.86,0.0001952,2]
[350633738,1738008635166,-500.0,0.0001952,2]
[350633739,1738008635177,-500.0,0.0001952,2]
[350633740,1738008635189,-500.0,0.0001952,2]
[350633741,1738008635200,-500.0,0.0001952,2]
[350633742,1738008635211,-500.0,0.0001952,2]
[350633743,1738008635223,-368.45661824,0.0001952,2]
[350633744,1738008635234,-500.0,0.0001952,2]
[350633745,1738008635245,-509.80014479,0.0001952,2]
[350633746,1738008635256,-13470.46,0.0001952,2]
[350633747,1738008635267,-500.0,0.0001952,2]
[350633748,1738008635278,-641.39,0.0001952,2]
[350633749,1738008635289,-500.0,0.0001952,2]
[350633750,1738008635299,-500.0,0.0001952,2]
[350633751,1738008635310,-500.0,0.0001952,2]
[350633752,1738008635321,-5380.71,0.0001952,2]
[350633753,1738008635331,-500.0,0.0001952,2]
[350633754,1738008635342,-500.0,0.0001952,2]
[350633755,1738008635353,-500.0,0.0001952,2]
[350633756,1738008635364,-500.0,0.0001952,2]
[350633757,1738008635376,-414.18505106,0.0001952,2]
[350633758,1738008635387,-500.0,0.0001952,2]
[350633759,1738008635398,-500.0,0.0001952,2]
[350633760,1738008635410,-500.0,0.0001952,2]
[350633761,1738008635420,-500.0,0.0001952,2]
[350633762,1738008635431,-500.0,0.0001952,2]
[350633763,1738008635442,-417.07447606,0.0001952,2]
[350633764,1738008635453,-500.0,0.0001952,2]
[350633765,1738008635464,-593.94,0.0001952,2]
[350633766,1738008635478,-500.0,0.0001952,2]
[350633767,1738008635491,-500.0,0.0001952,2]
[350633768,1738008635502,-500.0,0.00019521,2]
[350633769,1738008635513,-500.0,0.00019521,2]
[350633770,1738008635525,-500.0,0.00019521,2]
[350633771,1738008635536,-500.0,0.00019521,2]
[350633772,1738008635547,-500.0,0.00019521,2]
[350633773,1738008635559,-500.0,0.00019521,2]
[350633774,1738008635571,-500.0,0.00019521,2]
[350633775,1738008635582,-500.0,0.00019521,2]
[350633776,1738008635593,-500.0,0.00019521,2]
[350633777,1738008635604,-372.74747842,0.00019521,2]
[350633778,1738008635615,-501.64314676,0.00019521,2]
[350633779,1738008635627,-500.0,0.00019521,2]
[350633780,1738008635639,-500.0,0.00019521,2]
[350633781,1738008635764,-500.0,0.00019521,2]
[350633782,1738008635781,-266.732,0.00019521,2]
[350633783,1738008635791,-500.0,0.00019521,2]
[350633784,1738008635800,-500.0,0.00019521,2]
[350633785,1738008635810,-470.83355585,0.00019521,2]
[350633786,1738008635819,-500.0,0.00019521,2]
[350633787,1738008635829,-500.0,0.00019521,2]
[350633788,1738008635838,-626.76402058,0.00019521,2]
[350633789,1738008635848,-500.0,0.00019521,2]
[350633790,1738008635858,-500.0,0.00019521,2]
[350633791,1738008635867,-500.0,0.00019521,2]
[350633792,1738008635876,-521.91521285,0.00019521,2]
[350633793,1738008635886,-500.0,0.00019521,2]
[350633794,1738008635895,-500.0,0.00019521,2]
[350633795,1738008635904,-500.0,0.00019521,2]
[350633796,1738008635913,-500.0,0.00019521,2]
[350633797,1738008635923,-500.0,0.00019521,2]
[350633798,1738008635932,-500.0,0.00019521,2]
[350633799,1738008635941,-500.0,0.00019521,2]
[350633800,1738008635950,-500.0,0.00019521,2]
[350633801,1738008635959,-500.0,0.00019521,2]
[350633802,1738008635969,-500.0,0.00019521,2]
[350633803,1738008635978,-500.0,0.00019521,2]
[350633804,1738008635987,-500.0,0.00019521,2]
[350633805,1738008635996,-500.0,0.00019521,2]
[350633806,1738008636005,-500.0,0.00019521,2]
[350633807,1738008636015,-500.0,0.00019521,2]
[350633808,1738008636024,-500.0,0.00019521,2]
[350633809,1738008636033,-500.0,0.00019521,2]
[350633810,1738008636042,-500.0,0.00019655,2]
[350633811,1738008636052,-810.37,0.00019656,2]
[350633812,1738008636061,-500.0,0.00019656,2]
[350633813,1738008636070,-500.0,0.00019656,2]
[350633814,1738008636079,-559.1,0.00019656,2]
[350633815,1738008636089,-500.0,0.00019656,2]
[350633816,1738008636098,-1364.03,0.00019656,2]
[350633817,1738008636107,-1820.45,0.00019656,2]
[350633818,1738008636117,-1833.77,0.00019656,2]
[350633819,1738008636126,-500.0,0.00019656,2]
[350633820,1738008636136,-500.0,0.00019656,2]
[350633821,1738008636145,-500.0,0.00019656,2]